fUSD/lending_fUSD_20241121
["ID","MTS","AMOUNT","RATE_DAILY","PERIOD"]
[342928078,1732209091162,-825.54,0.0004,11]
[342928079,1732209091172,-500.0,0.0004,11]
[342928080,1732209091182,-500.0,0.0004,11]
[342928081,1732209091192,-510.15,0.0004,11]
[342928082,1732209091202,-500.0,0.0004,11]
[342928083,1732209091211,-500.0,0.0004,11]
[342928084,1732209091222,-500.0,0.0004,11]
[342928085,1732209091234,-589.93,0.0004,11]
[342928086,1732209091244,-500.0,0.0004,11]
[342928087,1732209091255,-1030.83,0.0004,11]
[342928088,1732209091265,-833.36,0.0004,11]
[342928089,1732209091274,-861.33,0.0004,11]
[342928090,1732209091284,-500.0,0.0004,11]
[342928091,1732209091293,-500.0,0.0004,11]
[342928092,1732209091303,-500.0,0.0004,11]
[342928093,1732209091312,-783.55,0.0004,11]
[342928094,1732209091322,-500.0,0.0004,11]
[342928095,1732209091332,-500.0,0.0004,11]
[342928096,1732209091342,-500.0,0.0004,11]
[342928097,1732209091351,-500.0,0.0004,11]
[342928098,1732209091361,-500.0,0.0004,11]
[342928099,1732209091371,-550.09,0.0004,11]
[342928100,1732209091381,-500.0,0.0004,11]
[342928101,1732209091390,-500.0,0.0004,11]
[342928102,1732209091400,-500.0,0.0004,11]
[342928103,1732209091410,-500.0,0.0004,11]
[342928104,1732209091426,-1697.17,0.0004,11]
[342928105,1732209091436,-500.0,0.0004,11]
[342928106,1732209091446,-500.0,0.0004,11]
[342928107,1732209091458,-520.06,0.0004,11]
[342928108,1732209091471,-500.0,0.0004,11]
[342928109,1732209091487,-516.81,0.0004,11]
[342928110,1732209091499,-500.0,0.0004,11]
[342928111,1732209091510,-500.0,0.0004,11]
[342928112,1732209091685,-557.33,0.0004,11]
[342928113,1732209091703,-811.45,0.0004,11]
[342928114,1732209091712,-500.0,0.0004,11]
[342928115,1732209091721,-500.0,0.0004,11]
[342928116,1732209091736,-500.0,0.0004,11]
[342928117,1732209091746,-500.0,0.0004,11]
[342928118,1732209091755,-500.0,0.0004,11]
[342928119,1732209091766,-500.0,0.0004,11]
[342928120,1732209091776,-835.91,0.0004,11]
[342928121,1732209091786,-401.72865339,0.0004,11]
[342928122,1732209091796,-500.0,0.0004,11]
[342928123,1732209091806,-683.12,0.0004,11]
[342928124,1732209091816,-500.0,0.0004,11]
[342928125,1732209091825,-500.0,0.0004,11]
[342928126,1732209091835,-796.83,0.0004,11]
[342928127,1732209091845,-500.0,0.0004,11]
[342928128,1732209091856,-500.0,0.0004,11]
[342928129,1732209091865,-500.0,0.0004,11]
[342928130,1732209091874,-616.1,0.0004,11]
[342928131,1732209091884,-1663.42,0.0004,11]
[342928132,1732209091895,-500.0,0.0004,11]
[342928133,1732209091905,-1643.67,0.0004,11]
[342928134,1732209091914,-500.0,0.0004,11]
[342928135,1732209091924,-888.86,0.0004,11]
[342928136,1732209091933,-500.0,0.0004,11]
[342928137,1732209091943,-500.0,0.0004,11]
[342928138,1732209091953,-500.0,0.0004,11]
[342928139,1732209091962,-885.6,0.0004,11]
[342928140,1732209091972,-669.53,0.0004,11]
[342928141,1732209091985,-1104.14,0.0004,11]
[342928142,1732209091995,-178.44250294,0.0004,11]
[342928143,1732209092004,-500.0,0.0004,11]
[342928144,1732209092014,-500.0,0.0004,11]
[342928145,1732209092024,-500.0,0.0004,11]
[342928146,1732209092033,-169.4117637,0.0004,11]
[342928147,1732209092043,-1369.86,0.0004,11]
[342928148,1732209092053,-1026.05,0.0004,11]
[342928149,1732209092063,-500.0,0.0004,11]
[342928150,1732209092073,-500.0,0.0004,11]
[342928151,1732209092082,-1001.34,0.0004,11]
[342928152,1732209092091,-978.47,0.0004,11]
[342928153,1732209092101,-508.56,0.0004,11]
[342928154,1732209092110,-500.0,0.0004,11]
[342928155,1732209092119,-697.15,0.0004,11]
[342928156,1732209092129,-500.0,0.0004,11]
[342928157,1732209092139,-949.01,0.0004,11]
[342928158,1732209092148,-500.0,0.0004,11]
[342928159,1732209092157,-1898.28,0.0004,11]
[342928160,1732209092167,-942.92,0.0004,11]
[342928161,1732209092176,-500.0,0.0004,11]
[342928162,1732209092186,-500.0,0.0004,11]
[342928163,1732209092195,-500.0,0.0004,11]
[342928164,1732209092204,-500.0,0.0004,11]
[342928165,1732209092214,-685.7,0.0004,11]
[342928166,1732209092223,-500.0,0.0004,11]
[342928167,1732209092238,-500.0,0.0004,11]
[342928168,1732209092252,-500.0,0.0004,11]
[342928169,1732209092262,-692.64,0.0004,11]
[342928170,1732209092271,-500.0,0.0004,11]
[342928171,1732209092280,-378.56726223,0.0004,11]
[342928172,1732209092289,-500.0,0.0004,11]
[342928173,1732209092299,-300.0,0.0004,11]
[342928174,1732209092308,-500.0,0.0004,11]
[342928175,1732209092318,-500.0,0.0004,11]
[342928176,1732209092327,-1040.7,0.0004,11]
[342928177,1732209092337,-503.62,0.0004,11]
[342928178,1732209092346,-500.0,0.0004,11]
[342928179,1732209092356,-500.0,0.0004,11]
[342928180,1732209092365,-1256.91,0.0004,11]
[342928181,1732209092376,-500.0,0.0004,120]
[342928182,1732209092386,-500.0,0.0004,11]
[342928183,1732209092396,-500.0,0.0004,11]
[342928184,1732209092405,-500.0,0.0004,11]
[342928185,1732209092417,-1313.76,0.0004,11]
[342928186,1732209092428,-507.04,0.0004,11]
[342928187,1732209092437,-500.0,0.0004,11]
[342928188,1732209092448,-500.0,0.0004,11]
[342928189,1732209092457,-500.0,0.0004,11]
[342928190,1732209092467,-1226.07,0.0004,11]
[342928191,1732209092481,-500.0,0.0004,11]
[342928192,1732209092490,-500.0,0.0004,11]
[342928193,1732209092502,-500.0,0.0004,11]
[342928194,1732209092511,-500.0,0.0004,11]
[342928195,1732209092521,-628.62,0.0004,11]
[342928196,1732209092531,-500.0,0.0004,11]
[342928197,1732209092540,-500.0,0.0004,11]
[342928198,1732209092550,-852.45,0.0004,11]
[342928199,1732209092560,-1429.93,0.0004,11]
[342928200,1732209092571,-2495.52,0.0004,11]
[342928201,1732209092590,-787.31,0.0004,11]
[342928202,1732209092599,-500.0,0.0004,11]
[342928203,1732209092608,-500.0,0.0004,11]
[342928204,1732209092618,-500.0,0.0004,11]
[342928205,1732209092627,-550.28,0.0004,11]
[342928206,1732209092637,-500.0,0.0004,11]
[342928207,1732209092646,-500.0,0.0004,11]
[342928208,1732209092656,-500.0,0.0004,11]
[342928209,1732209092666,-500.0,0.0004,11]
[342928210,1732209092675,-1672.68,0.0004,11]
[342928211,1732209092685,-500.0,0.0004,11]
[342928212,1732209092694,-500.0,0.0004,11]
[342928213,1732209092703,-500.0,0.0004,11]
[342928214,1732209092713,-500.0,0.0004,11]
[342928215,1732209092722,-285.82618543,0.0004,11]
[342928216,1732209092735,-500.0,0.0004,11]
[342928217,1732209092744,-500.0,0.0004,11]
[342928218,1732209092754,-500.0,0.0004,11]
[342928219,1732209092764,-540.51,0.0004,11]
[342928220,1732209092773,-2479.94,0.0004,11]
[342928221,1732209092783,-500.0,0.0004,11]
[342928222,1732209092792,-500.0,0.0004,11]
[342928223,1732209092802,-500.0,0.0004,11]
[342928224,1732209092811,-579.21,0.0004,11]
[342928225,1732209092821,-500.0,0.0004,11]
[342928226,1732209092831,-556.44,0.0004,11]
[342928227,1732209092840,-223.60613506,0.0004,11]
[342928228,1732209092850,-1795.76,0.0004,11]
[342928229,1732209092859,-500.0,0.0004,11]
[342928230,1732209092870,-1015.2,0.0004,11]
[342928231,1732209092879,-500.0,0.0004,11]
[342928232,1732209092889,-2148.5,0.0004,11]
[342928233,1732209092898,-2009.83,0.0004,11]
[342928234,1732209092907,-290.28,0.0004,11]
[342928235,1732209092916,-2980.46,0.0004,11]
[342928236,1732209092926,-500.0,0.0004,11]
[342928237,1732209092935,-580.37,0.0004,11]
[342928238,1732209092945,-500.0,0.0004,11]
[342928239,1732209092955,-246.99,0.0004,11]
[342928240,1732209092964,-500.0,0.0004,11]
[342928241,1732209092974,-12761.51,0.0004,11]
[342928242,1732209092986,-500.0,0.0004,11]
[342928243,1732209092995,-500.0,0.0004,11]
[342928244,1732209093005,-922.76,0.0004,11]
[342928245,1732209093015,-952.81,0.0004,11]
[342928246,1732209093024,-500.0,0.0004,11]
[342928247,1732209093034,-500.0,0.0004,11]
[342928248,1732209093044,-2728.46,0.0004,11]
[342928249,1732209093054,-929.41,0.0004,11]
[342928250,1732209093063,-1595.23,0.0004,11]
[342928251,1732209093072,-500.0,0.0004,11]
[342928252,1732209093082,-1432.21,0.0004,11]
[342928253,1732209093092,-500.0,0.0004,11]
[342928254,1732209093101,-500.0,0.0004,11]
[342928255,1732209093111,-942.0,0.0004,11]
[342928256,1732209093120,-500.0,0.0004,11]
[342928257,1732209093130,-152.42224267,0.0004,120]
[342928258,1732209093139,-500.0,0.0004,11]
[342928259,1732209093148,-516.79,0.0004,11]
[342928260,1732209093158,-494.67761602,0.0004,11]
[342928261,1732209093167,-500.0,0.0004,11]
[342928262,1732209093176,-500.0,0.0004,11]
[342928263,1732209093186,-1252.79,0.0004,11]
[342928264,1732209093196,-500.0,0.0004,11]
[342928265,1732209093206,-1321.17,0.0004,11]
[342928266,1732209093215,-520.13,0.0004,11]
[342928267,1732209093224,-512.26,0.0004,11]
[342928268,1732209093236,-741.51,0.0004,11]
[342928269,1732209093245,-500.0,0.0004,11]
[342928270,1732209093255,-1633.8,0.0004,11]
[342928271,1732209093264,-500.0,0.0004,11]
[342928272,1732209093275,-500.0,0.0004,11]
[342928273,1732209093285,-174.43,0.0004,11]
[342928274,1732209093295,-500.0,0.0004,11]
[342928275,1732209093304,-500.0,0.0004,11]
[342928276,1732209093314,-734.45,0.0004,11]
[342928277,1732209093324,-960.64,0.0004,11]
[342928278,1732209093334,-616.56,0.0004,11]
[342928279,1732209093343,-500.0,0.0004,11]
[342928280,1732209093352,-752.12,0.0004,11]
[342928281,1732209093361,-758.7,0.0004,11]
[342928282,1732209093371,-451.35503414,0.0004,11]
[342928283,1732209093380,-1619.83,0.0004,11]
[342928284,1732209093389,-3730.7,0.0004,11]
[342928285,1732209093400,-500.0,0.0004,11]
[342928286,1732209093410,-875.11,0.0004,11]
[342928287,1732209093421,-604.53,0.0004,11]
[342928288,1732209093433,-500.0,0.0004,11]
[342928289,1732209093442,-4315.98,0.0004,11]
[342928290,1732209093452,-500.0,0.0004,11]
[342928291,1732209093463,-389.48045227,0.0004,11]
[342928292,1732209093473,-500.0,0.0004,11]
[342928293,1732209093485,-590.5,0.0004,11]
[342928294,1732209093495,-1367.1,0.0004,11]
[342928295,1732209093506,-500.0,0.0004,11]
[342928296,1732209093517,-500.0,0.0004,11]
[342928297,1732209093527,-500.0,0.0004,7]
[342928298,1732209093537,-500.0,0.0004,11]
[342928299,1732209093547,-1811.26,0.0004,11]
[342928300,1732209093557,-500.0,0.0004,11]
[342928301,1732209093567,-510.57,0.0004,11]
[342928302,1732209093576,-659.28,0.0004,11]
[342928303,1732209093586,-500.0,0.0004,11]
[342928304,1732209093596,-1533.44,0.0004,11]
[342928305,1732209093605,-779.74,0.0004,11]
[342928306,1732209093615,-500.0,0.0004,11]
[342928307,1732209093625,-3341.95,0.0004,11]
[342928308,1732209093635,-500.0,0.0004,11]
[342928309,1732209093644,-1362.55,0.0004,11]
[342928310,1732209093654,-1720.08,0.0004,11]
[342928311,1732209093663,-1498.59,0.0004,11]
[342928312,1732209093673,-792.02,0.0004,11]
[342928313,1732209093682,-1182.34,0.0004,11]
[342928314,1732209093692,-1471.05,0.0004,11]
[342928315,1732209093702,-837.52,0.0004,11]
[342928316,1732209093711,-1211.37,0.0004,11]
[342928317,1732209093721,-500.0,0.0004,11]
[342928318,1732209093732,-630.92,0.0004,11]
[342928319,1732209093742,-500.0,0.0004,11]
[342928320,1732209093753,-500.0,0.0004,11]
[342928321,1732209093763,-640.0,0.0004,11]
[342928322,1732209093773,-500.0,0.0004,11]
[342928323,1732209093783,-670.46,0.0004,11]
[342928324,1732209093793,-500.0,0.0004,11]
[342928325,1732209093803,-770.8,0.0004,11]
[342928326,1732209093813,-500.0,0.0004,11]
[342928327,1732209093823,-500.0,0.0004,11]
[342928328,1732209093833,-1008.56,0.0004,11]
[342928329,1732209093843,-635.29737328,0.0004,120]
[342928330,1732209093853,-500.0,0.0004,11]
[342928331,1732209093862,-4535.34,0.0004,11]
[342928332,1732209093872,-500.0,0.0004,11]
[342928333,1732209093882,-944.88,0.0004,11]
[342928334,1732209093892,-500.0,0.0004,11]
[342928335,1732209093902,-500.0,0.0004,11]
[342928336,1732209093913,-4492.75,0.0004,11]
[342928337,1732209093923,-983.56,0.0004,11]
[342928338,1732209093932,-976.54,0.0004,11]
[342928339,1732209093942,-500.0,0.0004,11]
[342928340,1732209093952,-500.0,0.0004,11]
[342928341,1732209093962,-371.54114867,0.0004,11]
[342928342,1732209093971,-1954.58,0.0004,11]
[342928343,1732209093984,-561.87903907,0.0004,11]
[342928344,1732209093994,-13523.53,0.0004,11]
[342928345,1732209094004,-1112.73,0.0004,11]
[342928346,1732209094013,-1072.76,0.0004,11]
[342928347,1732209094023,-4328.35520924,0.00040062,15]
[342928348,1732209094033,-150.0,0.00040121,2]
[342928349,1732209094043,-150.0,0.00040121,2]
[342928350,1732209094052,-362.63,0.00040121,2]
[342928351,1732209094062,-362.63,0.00040121,2]
[342928352,1732209094071,-150.0,0.00040121,2]
[342928353,1732209094080,-150.0,0.00040121,2]
[342928354,1732209094089,-433.47,0.00040121,2]
[342928355,1732209094098,-433.47,0.00040121,2]
[342928356,1732209094108,-362.63,0.00040121,2]
[342928357,1732209094117,-151.54,0.00040121,2]
[342928358,1732209094126,-150.0,0.00040121,2]
[342928359,1732209094136,-150.0,0.00040121,2]
[342928360,1732209094145,-150.0,0.00040121,2]
[342928361,1732209094155,-433.47,0.00040121,2]
[342928362,1732209094164,-362.63,0.00040121,2]
[342928363,1732209094173,-150.0,0.00040121,2]
[342928364,1732209094182,-150.0,0.00040121,2]
[342928365,1732209094191,-433.47,0.00040121,2]
[342928366,1732209094201,-150.0,0.00040121,2]
[342928367,1732209094210,-150.0,0.00040121,2]
[342928368,1732209094219,-150.0,0.00040121,2]
[342928369,1732209094232,-362.63,0.00040121,2]
[342928370,1732209094241,-794.57,0.00040121,2]
[342928371,1732209094251,-150.0,0.00040121,2]
[342928372,1732209094260,-150.0,0.00040121,2]
[342928373,1732209094270,-362.63,0.00040121,2]
[342928374,1732209094279,-150.0,0.00040121,2]
[342928375,1732209094289,-300.0,0.00040121,2]
[342928376,1732209094299,-433.47,0.00040121,2]
[342928377,1732209094308,-150.0,0.00040121,2]
[342928378,1732209094317,-362.63,0.00040121,2]
[342928379,1732209094327,-276.23,0.00040121,2]
[342928380,1732209094337,-433.47,0.00040121,2]
[342928381,1732209094347,-362.63,0.00040121,2]
[342928382,1732209094357,-199.76,0.00040121,2]
[342928383,1732209094366,-433.47,0.00040121,2]
[342928384,1732209094375,-150.0,0.00040121,2]
[342928385,1732209094384,-433.47,0.00040121,2]
[342928386,1732209094394,-433.47,0.00040121,2]
[342928387,1732209094404,-150.0,0.00040121,2]
[342928388,1732209094414,-905.19,0.00040121,2]
[342928389,1732209094573,-5940.0,0.00040186,2]
[342928390,1732209094602,-250.701,0.00040186,2]
[342928391,1732209094612,-1162.0,0.00040186,2]
[342928392,1732209094622,-1092.0,0.00040186,2]
[342928393,1732209094631,-500.0,0.00040273,11]
[342928394,1732209094640,-1056.25,0.00040273,11]
[342928395,1732209094649,-500.0,0.00040273,11]
[342928396,1732209094659,-648.09,0.00040273,11]
[342928397,1732209094668,-500.0,0.00040273,11]
[342928398,1732209094677,-574.75,0.00040273,11]
[342928399,1732209094686,-89.02404889,0.00040273,11]
[342928400,1732209094712,-460.69275562,0.00040273,11]
[342928401,1732209094722,-740.56,0.00040273,11]
[342928402,1732209094734,-500.0,0.00040273,11]
[342928403,1732209094743,-188.25257541,0.00040273,11]
[342928404,1732209094752,-27.59466897,0.00040273,11]
[342928405,1732209094763,-252.93306808,0.00040273,11]
[342928406,1732209094782,-500.0,0.00039726,11]
[342928407,1732209094791,-144.35147038,0.00040273,11]
[342928408,1732209094863,-75.12079257,0.00040273,11]
[342928409,1732209094872,-500.0,0.00040273,11]
[342928410,1732209094881,-55.37370743,0.00040273,11]
[342928412,1732209189509,-1909.0,0.000366,5]
[342928413,1732209189532,-3012.0,0.000375,2]
[342928414,1732209189557,-166.69081178,0.000376,2]
[342928415,1732209189581,-13898.60814331,0.000377,15]
[342928416,1732209189603,-353.75,0.00037746,10]
[342928417,1732209189626,-617.25,0.00037746,10]
[342928418,1732209189648,-28348.27104491,0.00037756,2]
[342928419,1732209203728,-10000.0,0.00037756,2]
[342928420,1732209225108,-500.0,0.00024932,2]
[342928421,1732209225132,-9500.0,0.00037756,2]
[342928422,1732209246894,-200.0,0.00037755,30]
[342928423,1732209246921,-1800.0,0.00037756,2]
[342928430,1732209944193,-172.53,0.00015342,2]
[342928431,1732209944217,-147.87152739,0.00019178,2]
[342928432,1732209966771,403.71640337,0.0001,2]
[342928433,1732210002382,150.0,0.00011032,2]
[342928434,1732210027106,-150.0,0.00016862,2]
[342928435,1732210027129,-36.52847261,0.00019178,2]
[342928436,1732210027154,-172.53,0.00021745,2]
[342928437,1732210027175,-507.2605,0.00021916,2]
[342928438,1732210027200,-500.0,0.00024932,2]
[342928439,1732210027224,-330.77195434,0.00025,10]
[342928440,1732210027247,-308.05425079,0.00025,2]
[342928441,1732210028139,-150.96767162,0.00025,2]
[342928442,1732210035091,-559.45121716,0.000225,2]
[342928443,1732210036129,-9485.32116016,0.000225,2]
[342928444,1732210042011,247.32802877,0.000101,2]
[342928446,1732210054092,-906.82239924,0.000225,2]
[342928457,1732210147093,-157.58,0.00015342,2]
[342928458,1732210147116,-204.399999,0.0002,2]
[342928459,1732210147143,-157.58,0.00021745,2]
[342928460,1732210147164,-3889.88,0.00022387,2]
[342928461,1732210147186,-300.0,0.00022499,2]
[342928462,1732210147205,-10656.51721445,0.000225,2]
[342928467,1732210151095,-12208.41323446,0.000225,2]
[342928468,1732210151120,-159.40939005,0.00023,2]
[342928469,1732210160073,-40.59060995,0.00023,2]
[342928470,1732210160095,-900.0,0.000235,2]
[342928471,1732210160122,-10113.58676554,0.00023922,2]
[342928472,1732210163089,-55340.26822322,0.00023922,2]
[342928473,1732210163418,-2037.208516,0.00023922,2]
[342928474,1732210172084,-3195.56855039,0.00023922,2]
[342928492,1732210232100,-3651.28401579,0.000238,2]
[342928493,1732210232207,-400.0,0.000238,2]
[342928494,1732210232219,-1686.41644348,0.000238,2]
[342928495,1732210232296,-4135.7767,0.000238,2]
[342928496,1732210232307,-9645.80696495,0.000238,2]
[342928497,1732210232316,-3824.1073242,0.000239,2]
[342928498,1732210232325,-678.63160208,0.000239,2]
[342928499,1732210232334,-150.0,0.00023921,2]
[342928500,1732210232344,-37306.97912742,0.00023922,2]
[342928501,1732210232355,-12305.24499877,0.00023922,2]
[342928502,1732210232387,-3869.44697151,0.00023922,2]
[342928503,1732210232399,-376.40591823,0.00023922,2]
[342928504,1732210232408,-150.0,0.00024738,2]
[342928505,1732210232421,-1636.60736534,0.00025,2]
[342928506,1732210232430,-247.72825918,0.00025,2]
[342928507,1732210232439,-289.94007604,0.00025,2]
[342928508,1732210232449,-595.34222149,0.00025,7]
[342928513,1732210238027,-321.40995264,0.00025,7]
[342928514,1732210238036,-168.07,0.00025565,2]
[342928515,1732210238045,-198.54,0.00026986,120]
[342928516,1732210238055,-27.19198038,0.00026986,120]
[342928517,1732210238067,-772.80801962,0.00026986,120]
[342928518,1732210238076,-17.65429517,0.00026986,120]
[342928519,1732210238087,-183.80570483,0.00026986,120]
[342928520,1732210238096,-172.53,0.00028147,2]
[342928521,1732210238105,-157.58,0.00028147,2]
[342928522,1732210238115,-163.32,0.0002921,2]
[342928523,1732210238124,-499.999999,0.0003121,2]
[342928524,1732210238132,-250.0,0.00031493,2]
[342928525,1732210238141,-507.2605,0.00031763,2]
[342928526,1732210238150,-168.07,0.00031956,2]
[342928527,1732210238161,-500.0,0.00032268,2]
[342928528,1732210238171,-1067.306078,0.00032431,2]
[342928529,1732210238182,-785.113922,0.00032431,2]
[342928530,1732210238192,-150.0,0.00034046,2]
[342928531,1732210238201,-165.25,0.00034229,2]
[342928532,1732210238211,-4000.66,0.00034388,2]
[342928533,1732210238220,-6201.77,0.00034461,2]
[342928534,1732210238229,-357.2,0.00034486,10]
[342928535,1732210238238,-2185.98,0.00034496,2]
[342928536,1732210238247,-297.67,0.00034539,10]
[342928537,1732210238257,-512.08,0.00034549,90]
[342928538,1732210238266,-172.53,0.00034549,2]
[342928539,1732210238275,-157.58,0.00034549,2]
[342928540,1732210238284,-1019.94,0.00034561,2]
[342928541,1732210238294,-200.0,0.00034564,2]
[342928542,1732210238303,-1000.0,0.00034609,2]
[342928543,1732210238312,-514.38,0.00034762,10]
[342928544,1732210238322,-14744.11957109,0.00034772,15]
[342928545,1732210238331,-150.0,0.00034872,2]
[342928546,1732210238341,-428.65,0.0003489,10]
[342928547,1732210238350,-3555.67760867,0.000349,15]
[342928548,1732210238359,-167.23637625,0.000349,2]
[342928549,1732210238368,-156.10828266,0.00034989,7]
[342928550,1732210238378,-406.80407953,0.00034989,7]
[342928551,1732210238387,-210581.85611437,0.0003499,2]
[342928552,1732210238397,-4109.8539699,0.00035,30]
[342928553,1732210238406,-432.90379701,0.00035,2]
[342928554,1732210238415,-150.0,0.00035581,2]
[342928555,1732210238428,-2335.16,0.00035729,2]
[342928556,1732210238437,-150.0,0.00035733,2]
[342928557,1732210238447,-1000.0,0.00035889,2]
[342928558,1732210238457,-150.0,0.0003604,2]
[342928559,1732210238467,-14744.11957107,0.0003612,15]
[342928560,1732210238476,-23900.0,0.00036262,2]
[342928561,1732210238486,-243.59,0.00036262,2]
[342928562,1732210238495,-3555.67760858,0.00036322,15]
[342928563,1732210238504,-190.78,0.00036341,120]
[342928564,1732210238514,-573.46627679,0.00036406,120]
[342928565,1732210238523,-1378.69429149,0.00036406,120]
[342928566,1732210238532,-2000.0,0.00036406,2]
[342928568,1732210238541,-1930.56984352,0.00036406,30]
[342928569,1732210238551,-222.99,0.00036406,2]
[342928570,1732210238560,-150.23,0.00036429,2]
[342928571,1732210238570,-176.28,0.00036464,120]
[342928572,1732210238580,-320.13,0.00036464,2]
[342928573,1732210238589,-250.0,0.00036513,2]
[342928574,1732210238598,-1500.0,0.00036541,120]
[342928576,1732210238607,-250.0,0.00036562,120]
[342928578,1732210238616,-150.0,0.00036577,2]
[342928580,1732210238625,-219.8,0.00036582,2]
[342928582,1732210238634,-1000.0,0.0003662,2]
[342928584,1732210238643,-150.0,0.00036644,2]
[342928585,1732210238653,-150.0,0.00036669,2]
[342928586,1732210238663,-161.78,0.00036689,120]
[342928587,1732210238675,-1019.94,0.00036825,2]
[342928588,1732210238684,-315.8090774,0.000369,2]
[342928589,1732210238693,-11734.3318915,0.00037,30]
[342928590,1732210238701,-123114.89717557,0.00037,2]
[342928591,1732210238710,-8073.80380214,0.00037,2]
[342928592,1732210238719,-153.08,0.00037095,2]
[342928593,1732210238728,-153.08,0.00037107,2]
[342928594,1732210238737,-150.0,0.00037119,2]
[342928595,1732210238746,-153.08,0.0003712,2]
[342928596,1732210238756,-153.08,0.00037132,2]
[342928597,1732210238765,-153.08,0.00037144,2]
[342928598,1732210238775,-153.08,0.00037157,2]
[342928599,1732210238784,-153.08,0.00037169,2]
[342928600,1732210238794,-1000.0,0.0003717,2]
[342928601,1732210238803,-153.08,0.00037181,2]
[342928602,1732210238812,-153.08,0.00037194,2]
[342928603,1732210238821,-153.08,0.00037206,2]
[342928604,1732210238834,-153.08,0.00037218,2]
[342928605,1732210238843,-153.08,0.00037231,2]
[342928606,1732210238852,-153.08,0.00037243,2]
[342928607,1732210238861,-153.08,0.00037256,2]
[342928608,1732210238870,-2258.292,0.00037256,47]
[342928609,1732210238879,-180.262,0.00037256,47]
[342928610,1732210238888,-153.08,0.00037268,2]
[342928611,1732210238897,-153.08,0.0003728,2]
[342928612,1732210238906,-150.0,0.00037287,2]
[342928613,1732210238915,-1000.0,0.000373,15]
[342928614,1732210238925,-150.0,0.00037445,2]
[342928615,1732210238934,-14744.11957107,0.00037467,15]
[342928616,1732210238943,-2832.0,0.000375,2]
[342928617,1732210238952,-4147.92414184,0.0003759,2]
[342928618,1732210238961,-800.0,0.000376,13]
[342928619,1732210238971,-1000.0,0.000376,15]
[342928620,1732210238980,-445.6322,0.000377,2]
[342928621,1732210238991,-1700.0,0.000377,13]
[342928622,1732210239000,-3555.67760858,0.00037744,15]
[342928623,1732210239009,-150.23,0.0003775,2]
[342928624,1732210239018,-31742.82605509,0.00037756,2]
[342928625,1732210239028,-2021.0115,0.00037756,2]
[342928626,1732210239037,-14106.0,0.00037798,2]